fUSD/lending_fUSD_20240821
["ID","MTS","AMOUNT","RATE_DAILY","PERIOD"]
[335441280,1724232677253,-500.0,0.00016464,5]
[335441281,1724232677262,-228.27425248,0.00016464,5]
[335441282,1724232677271,-500.0,0.00016464,5]
[335441283,1724232677281,-500.0,0.00016464,5]
[335441284,1724232677292,-500.0,0.00016464,5]
[335441285,1724232677301,-500.0,0.00016464,5]
[335441286,1724232677311,-1951.41,0.00016464,5]
[335441287,1724232677320,-500.0,0.00016464,5]
[335441288,1724232677331,-500.0,0.00016464,5]
[335441289,1724232677345,-500.0,0.00016464,5]
[335441290,1724232677354,-500.0,0.00016464,5]
[335441291,1724232677364,-501.76,0.00016464,5]
[335441292,1724232677377,-836.09,0.00016464,5]
[335441293,1724232677387,-443.70357813,0.00016464,5]
[335441294,1724232677397,-500.0,0.00016464,5]
[335441295,1724232677407,-728.99,0.00016464,5]
[335441296,1724232677419,-625.11,0.00016464,5]
[335441297,1724232677428,-524.72,0.00016464,5]
[335441298,1724232677438,-483.2932309,0.00016464,5]
[335441299,1724232677448,-500.0,0.00016464,5]
[335441300,1724232677458,-1363.92,0.00016464,5]
[335441301,1724232677468,-604.82,0.00016464,5]
[335441302,1724232677478,-915.52,0.00016464,5]
[335441303,1724232677488,-517.76,0.00016464,5]
[335441304,1724232677498,-1734.43,0.00016464,5]
[335441305,1724232677507,-917.21,0.00016464,5]
[335441306,1724232677517,-857.59,0.00016464,5]
[335441307,1724232677527,-534.25,0.00016464,5]
[335441308,1724232677537,-6827.97,0.00016464,5]
[335441309,1724232677546,-1354.9,0.00016464,5]
[335441310,1724232677559,-665.84,0.00016464,5]
[335441311,1724232677569,-6610.57,0.00016464,5]
[335441312,1724232677578,-500.0,0.00016464,5]
[335441313,1724232677588,-3975.35,0.00016464,5]
[335441314,1724232677597,-1100.32,0.00016464,5]
[335441315,1724232677606,-6944.34,0.00016464,5]
[335441316,1724232677617,-1363.57,0.00016464,5]
[335441317,1724232677629,-500.0,0.00016464,5]
[335441318,1724232677639,-4841.28,0.00016464,5]
[335441319,1724232677648,-1956.36,0.00016464,5]
[335441320,1724232677657,-2971.62,0.00016464,5]
[335441321,1724232677666,-1729.02,0.00016464,5]
[335441322,1724232677676,-624.78,0.00016464,5]
[335441323,1724232677686,-168000.0,0.00016465,4]
[335441324,1724232677696,-578.21661091,0.00016465,5]
[335441325,1724232677705,-500.0,0.00016465,5]
[335441326,1724232677715,-500.0,0.00016465,5]
[335441327,1724232677725,-275.56386531,0.00016465,5]
[335441328,1724232677734,-419.30080076,0.00016465,5]
[335441329,1724232677743,-500.0,0.00016465,5]
[335441330,1724232677753,-500.0,0.00016465,5]
[335441331,1724232677763,-500.0,0.00016465,5]
[335441332,1724232677773,-500.0,0.00016465,5]
[335441333,1724232677782,-239.25896277,0.00016465,5]
[335441334,1724232677792,-500.0,0.00016465,5]
[335441335,1724232677802,-425.01624044,0.00016465,5]
[335441336,1724232677812,-500.0,0.00016465,5]
[335441337,1724232677821,-500.0,0.00016465,5]
[335441338,1724232677831,-500.0,0.00016465,5]
[335441339,1724232677840,-564.18971021,0.00016465,5]
[335441340,1724232677850,-501.76,0.00016465,5]
[335441341,1724232677860,-501.76,0.00016465,5]
[335441342,1724232677870,-501.76,0.00016465,5]
[335441343,1724232677883,-501.76,0.00016465,5]
[335441344,1724232677893,-501.87568355,0.00016465,5]
[335441345,1724232677904,-836.09,0.00016465,5]
[335441346,1724232677915,-836.09,0.00016465,5]
[335441347,1724232677924,-836.09,0.00016465,5]
[335441348,1724232677935,-836.09,0.00016465,5]
[335441349,1724232677945,-836.26658664,0.00016465,5]
[335441350,1724232677954,-728.99,0.00016465,5]
[335441351,1724232677964,-728.99,0.00016465,5]
[335441352,1724232677974,-728.99,0.00016465,5]
[335441353,1724232677984,-728.99,0.00016465,5]
[335441354,1724232677994,-729.06504508,0.00016465,5]
[335441355,1724232678003,-625.11,0.00016465,5]
[335441356,1724232678013,-625.11,0.00016465,5]
[335441357,1724232678023,-625.11,0.00016465,5]
[335441358,1724232678033,-625.11,0.00016465,5]
[335441359,1724232678043,-625.2920884,0.00016465,5]
[335441360,1724232678052,-1363.92,0.00016465,5]
[335441361,1724232678062,-1363.92,0.00016465,5]
[335441362,1724232678183,-1363.92,0.00016465,5]
[335441363,1724232678194,-1363.92,0.00016465,5]
[335441364,1724232678205,-1364.12398507,0.00016465,5]
[335441365,1724232678216,-528.68,0.00016465,5]
[335441366,1724232678226,-528.68,0.00016465,5]
[335441367,1724232678236,-528.68,0.00016465,5]
[335441368,1724232678246,-528.68,0.00016465,5]
[335441369,1724232678256,-528.84360876,0.00016465,5]
[335441370,1724232678266,-500.0,0.00016465,5]
[335441371,1724232678275,-500.0,0.00016465,5]
[335441372,1724232678285,-500.0,0.00016465,5]
[335441373,1724232678294,-500.0,0.00016465,5]
[335441374,1724232678304,-399.42,0.00016465,5]
[335441375,1724232678314,-3102.37,0.00016465,5]
[335441376,1724232678323,-3102.37,0.00016465,5]
[335441377,1724232678336,-3102.37,0.00016465,5]
[335441378,1724232678347,-3102.37,0.00016465,5]
[335441379,1724232678356,-3102.58445089,0.00016465,5]
[335441380,1724232678366,-1116.84,0.00016465,5]
[335441381,1724232678381,-1116.84,0.00016465,5]
[335441382,1724232678393,-1116.84,0.00016465,5]
[335441383,1724232678403,-1116.84,0.00016465,5]
[335441384,1724232678415,-1117.07218942,0.00016465,5]
[335441385,1724232678425,-682.85,0.00016465,5]
[335441386,1724232678434,-682.85,0.00016465,5]
[335441387,1724232678445,-682.85,0.00016465,5]
[335441388,1724232678456,-682.85,0.00016465,5]
[335441389,1724232678466,-682.91993758,0.00016465,5]
[335441390,1724232678476,-5406.57,0.00016465,5]
[335441391,1724232678486,-5406.57,0.00016465,5]
[335441392,1724232678496,-5406.57,0.00016465,5]
[335441393,1724232678506,-5406.57,0.00016465,5]
[335441394,1724232678516,-5406.5855232,0.00016465,5]
[335441395,1724232678526,-730.09,0.00016465,5]
[335441396,1724232678537,-730.09,0.00016465,5]
[335441397,1724232678547,-730.09,0.00016465,5]
[335441398,1724232678558,-730.09,0.00016465,5]
[335441399,1724232678568,-730.1394194,0.00016465,5]
[335441400,1724232678578,-500.0,0.00016465,5]
[335441401,1724232678589,-406.21752704,0.00016465,5]
[335441402,1724232678599,-500.0,0.00016465,5]
[335441403,1724232678609,-500.0,0.00016465,5]
[335441404,1724232678619,-500.0,0.00016465,5]
[335441405,1724232678631,-159.97765352,0.00016465,5]
[335441406,1724232678641,-603.83,0.00016465,5]
[335441407,1724232678651,-603.83,0.00016465,5]
[335441408,1724232678660,-603.83,0.00016465,5]
[335441409,1724232678670,-603.83,0.00016465,5]
[335441410,1724232678680,-603.93990918,0.00016465,5]
[335441411,1724232678690,-706.13,0.00016465,5]
[335441412,1724232678700,-706.13,0.00016465,5]
[335441413,1724232678710,-706.13,0.00016465,5]
[335441414,1724232678719,-706.13,0.00016465,5]
[335441415,1724232678728,-706.22513786,0.00016465,5]
[335441416,1724232678738,-1085.61,0.00016465,5]
[335441417,1724232678748,-1085.61,0.00016465,5]
[335441418,1724232678757,-1085.61,0.00016465,5]
[335441419,1724232678767,-1085.61,0.00016465,5]
[335441420,1724232678777,-1085.70482035,0.00016465,5]
[335441421,1724232678787,-1342.3,0.00016465,5]
[335441422,1724232678797,-1342.3,0.00016465,5]
[335441423,1724232678806,-1342.3,0.00016465,5]
[335441424,1724232678815,-1342.3,0.00016465,5]
[335441425,1724232678825,-1342.32286376,0.00016465,5]
[335441426,1724232678834,-3807.57,0.00016465,5]
[335441427,1724232678844,-3807.57,0.00016465,5]
[335441428,1724232678854,-3807.57,0.00016465,5]
[335441429,1724232678864,-3807.57,0.00016465,5]
[335441430,1724232678874,-3807.70798541,0.00016465,5]
[335441431,1724232678893,-1351.99,0.00016465,5]
[335441432,1724232678903,-1351.99,0.00016465,5]
[335441433,1724232678913,-1351.99,0.00016465,5]
[335441434,1724232678923,-1351.99,0.00016465,5]
[335441435,1724232678933,-1352.03063116,0.00016465,5]
[335441436,1724232678942,-6047.53596373,0.00016465,2]
[335441437,1724232678952,-1000.0,0.00016466,2]
[335441438,1724232678962,-500.0,0.00016466,5]
[335441439,1724232678972,-500.0,0.00016466,5]
[335441440,1724232678981,-591.37674888,0.00016466,5]
[335441441,1724232678990,-500.0,0.00016466,5]
[335441442,1724232679000,-1951.41,0.00016466,5]
[335441443,1724232679010,-500.0,0.00016466,5]
[335441444,1724232679020,-500.0,0.00016466,5]
[335441445,1724232679029,-500.0,0.00016466,5]
[335441446,1724232679040,-446.48776715,0.00016466,5]
[335441447,1724232679050,-500.0,0.00016466,5]
[335441448,1724232679060,-368.10386842,0.00016466,5]
[335441449,1724232679070,-524.72,0.00016466,5]
[335441450,1724232679079,-199.48420271,0.00016466,5]
[335441451,1724232679089,-604.82,0.00016466,5]
[335441452,1724232679099,-604.82,0.00016466,5]
[335441453,1724232679108,-604.82,0.00016466,5]
[335441454,1724232679118,-604.82,0.00016466,5]
[335441455,1724232679128,-604.84434612,0.00016466,5]
[335441456,1724232679138,-915.52,0.00016466,5]
[335441457,1724232679148,-915.52,0.00016466,5]
[335441458,1724232679158,-915.52,0.00016466,5]
[335441459,1724232679167,-915.52,0.00016466,5]
[335441460,1724232679177,-915.59708584,0.00016466,5]
[335441461,1724232679187,-517.76,0.00016466,5]
[335441462,1724232679197,-517.76,0.00016466,5]
[335441463,1724232679207,-517.76,0.00016466,5]
[335441464,1724232679217,-517.76,0.00016466,5]
[335441465,1724232679227,-517.85515007,0.00016466,5]
[335441466,1724232679237,-1734.43,0.00016466,5]
[335441467,1724232679247,-917.21,0.00016466,5]
[335441468,1724232679256,-917.21,0.00016466,5]
[335441469,1724232679266,-917.21,0.00016466,5]
[335441470,1724232679276,-917.21,0.00016466,5]
[335441471,1724232679285,-917.29872227,0.00016466,5]
[335441472,1724232679295,-857.59,0.00016466,5]
[335441473,1724232679304,-857.59,0.00016466,5]
[335441474,1724232679314,-857.59,0.00016466,5]
[335441475,1724232679323,-857.59,0.00016466,5]
[335441476,1724232679333,-857.78169002,0.00016466,5]
[335441477,1724232679347,-534.25,0.00016466,5]
[335441478,1724232679357,-534.25,0.00016466,5]
[335441479,1724232679367,-534.25,0.00016466,5]
[335441480,1724232679378,-534.25,0.00016466,5]
[335441481,1724232679388,-534.29450967,0.00016466,5]
[335441482,1724232679398,-6827.97,0.00016466,5]
[335441483,1724232679407,-6827.97,0.00016466,5]
[335441484,1724232679419,-6827.97,0.00016466,5]
[335441485,1724232679429,-6827.97,0.00016466,5]
[335441486,1724232679438,-6828.04177598,0.00016466,5]
[335441487,1724232679448,-1354.9,0.00016466,5]
[335441488,1724232679457,-1354.9,0.00016466,5]
[335441489,1724232679466,-1354.9,0.00016466,5]
[335441490,1724232679476,-1354.9,0.00016466,5]
[335441491,1724232679486,-1355.01828418,0.00016466,5]
[335441492,1724232679496,-665.84,0.00016466,5]
[335441493,1724232679505,-665.84,0.00016466,5]
[335441494,1724232679514,-665.84,0.00016466,5]
[335441495,1724232679523,-665.84,0.00016466,5]
[335441496,1724232679533,-665.95616831,0.00016466,5]
[335441497,1724232679542,-6610.57,0.00016466,5]
[335441498,1724232679552,-6610.57,0.00016466,5]
[335441499,1724232679561,-6610.57,0.00016466,5]
[335441500,1724232679571,-6610.57,0.00016466,5]
[335441501,1724232679581,-6610.68895953,0.00016466,5]
[335441502,1724232679591,-500.0,0.00016466,5]
[335441503,1724232679602,-500.0,0.00016466,5]
[335441504,1724232679612,-500.0,0.00016466,5]
[335441505,1724232679622,-500.0,0.00016466,5]
[335441506,1724232679634,-371.28120778,0.00016466,5]
[335441507,1724232679644,-3975.35,0.00016466,5]
[335441508,1724232679653,-3975.35,0.00016466,5]
[335441509,1724232679663,-3975.35,0.00016466,5]
[335441510,1724232679672,-3975.35,0.00016466,5]
[335441511,1724232679681,-3975.41,0.00016466,5]
[335441512,1724232679691,-1100.32,0.00016466,5]
[335441513,1724232679700,-1100.32,0.00016466,5]
[335441514,1724232679709,-1100.32,0.00016466,5]
[335441515,1724232679719,-1100.32,0.00016466,5]
[335441516,1724232679727,-1100.38492953,0.00016466,5]
[335441517,1724232679737,-6944.34,0.00016466,5]
[335441518,1724232679747,-6944.34,0.00016466,5]
[335441519,1724232679756,-6944.34,0.00016466,5]
[335441520,1724232679765,-6944.34,0.00016466,5]
[335441521,1724232679774,-6944.56846387,0.00016466,5]
[335441522,1724232679783,-1363.57,0.00016466,5]
[335441523,1724232679793,-1363.57,0.00016466,5]
[335441524,1724232679802,-1363.57,0.00016466,5]
[335441525,1724232679811,-1363.57,0.00016466,5]
[335441526,1724232679820,-1363.63108518,0.00016466,5]
[335441527,1724232679830,-500.0,0.00016466,5]
[335441528,1724232679839,-509.74390188,0.00016466,5]
[335441529,1724232679848,-4841.28,0.00016466,5]
[335441530,1724232679858,-4841.28,0.00016466,5]
[335441531,1724232679868,-4841.28,0.00016466,5]
[335441532,1724232679878,-4841.28,0.00016466,5]
[335441533,1724232679888,-4841.31097935,0.00016466,5]
[335441534,1724232679897,-1956.36,0.00016466,5]
[335441535,1724232679907,-1956.36,0.00016466,5]
[335441536,1724232679917,-1956.36,0.00016466,5]
[335441537,1724232679926,-1956.36,0.00016466,5]
[335441538,1724232679935,-1956.51575162,0.00016466,5]
[335441539,1724232679945,-2971.62,0.00016466,5]
[335441540,1724232679955,-2971.62,0.00016466,5]
[335441541,1724232679966,-2971.62,0.00016466,5]
[335441542,1724232679975,-2971.62,0.00016466,5]
[335441543,1724232679985,-2971.77379899,0.00016466,5]
[335441544,1724232679995,-1729.02,0.00016466,5]
[335441545,1724232680006,-1729.02,0.00016466,5]
[335441546,1724232680017,-1729.02,0.00016466,5]
[335441547,1724232680027,-1729.02,0.00016466,5]
[335441548,1724232680038,-624.78,0.00016466,5]
[335441549,1724232680048,-1729.23010736,0.00016466,5]
[335441550,1724232680057,-55933.80849537,0.00016467,8]
[335441551,1724232680066,-500.0,0.00016467,5]
[335441552,1724232680076,-424.51928722,0.00016467,5]
[335441553,1724232680087,-235.14,0.00016467,5]
[335441554,1724232680097,-500.0,0.00016467,5]
[335441555,1724232680106,-223.09780206,0.00016467,5]
[335441556,1724232680116,-1951.41,0.00016467,5]
[335441557,1724232680127,-1951.41,0.00016467,5]
[335441558,1724232680137,-1951.41,0.00016467,5]
[335441559,1724232680146,-1951.41,0.00016467,5]
[335441560,1724232680156,-1951.41,0.00016467,5]
[335441561,1724232680165,-1951.41,0.00016467,5]
[335441562,1724232680174,-1951.41,0.00016467,5]
[335441563,1724232680184,-1951.49501283,0.00016467,5]
[335441564,1724232680193,-524.72,0.00016467,5]
[335441565,1724232680203,-524.72,0.00016467,5]
[335441566,1724232680212,-524.72,0.00016467,5]
[335441567,1724232680222,-524.72,0.00016467,5]
[335441568,1724232680232,-524.72,0.00016467,5]
[335441569,1724232680242,-524.72,0.00016467,5]
[335441570,1724232680251,-524.72,0.00016467,5]
[335441571,1724232680261,-524.73556796,0.00016467,5]
[335441572,1724232680270,-1734.43,0.00016467,5]
[335441573,1724232680280,-1734.43,0.00016467,5]
[335441574,1724232680289,-1734.43,0.00016467,5]
[335441575,1724232680299,-1734.43,0.00016467,5]
[335441576,1724232680308,-1734.43,0.00016467,5]
[335441577,1724232680317,-1734.43,0.00016467,5]
[335441578,1724232680326,-1734.43,0.00016467,5]
[335441579,1724232680336,-1734.60138331,0.00016467,5]
[335441580,1724232680347,-624.78,0.00016467,5]
[335441581,1724232680356,-624.78,0.00016467,5]
[335441582,1724232680366,-624.78,0.00016467,5]
[335441583,1724232680378,-624.78,0.00016467,5]
[335441584,1724232680386,-624.78,0.00016467,5]
[335441585,1724232680396,-624.78,0.00016467,5]
[335441586,1724232680405,-624.78,0.00016467,5]
[335441587,1724232680415,-624.89761283,0.00016467,5]
[335441588,1724232680424,-300000.0,0.00016468,3]
[335441589,1724232680434,-85640.0,0.0001647,4]
[335441590,1724232680443,-343.03756532,0.00016473,2]
[335441591,1724232680452,-200.0,0.00016473,2]
[335441592,1724232680461,-200.76692509,0.00016473,2]
[335441593,1724232680471,-16310.49128502,0.0001648,2]
[335441594,1724232680480,-18142.60789119,0.00016485,2]
[335441595,1724232680489,-1136.52653892,0.00016486,5]
[335441596,1724232680498,-1136.52653893,0.00016486,5]
[335441597,1724232680507,-1136.52653892,0.00016487,5]
[335441598,1724232680517,-543305.22626818,0.00016488,10]
[335441599,1724232680890,-60319.21228543,0.00016488,10]
[335441600,1724232680901,-137427.88309068,0.00016488,10]
[335441601,1724232680925,-500.0,0.00016438,2]
[335441602,1724232680936,-412.7239687,0.00016438,2]
[335441603,1724232681038,-258.19,0.00016338,2]
[335441604,1724232681050,-762.03869637,0.00016338,2]
[335441605,1724232681059,-586.6860313,0.00016438,2]
[335441606,1724232681068,-177.10380774,0.00016438,2]
[335441607,1724232681077,-999.41,0.00016438,2]
[335441608,1724232681086,-999.41,0.00016438,2]
[335441609,1724232681096,-999.41,0.00016438,2]
[335441610,1724232681105,-999.41,0.00016438,2]
[335441611,1724232681114,-999.41,0.00016438,2]
[335441612,1724232681124,-999.41,0.00016438,2]
[335441613,1724232681134,-999.41,0.00016438,2]
[335441614,1724232681144,-27313.71886612,0.00016488,10]
[335441615,1724232681979,-412.640001,0.00015705,2]
[335441616,1724232682013,-9587.359999,0.00015705,2]
[335441617,1724232682022,-999.61,0.00016438,2]
[335441618,1724232682033,-33.19901175,0.00016488,10]
[335441619,1724232909734,7557.52031271,0.000108,2]
[335441620,1724232951628,153.06,0.00010959,2]
[335441622,1724233048022,6806.13725388,0.00010999,2]
[335441635,1724233322763,691.35155875,0.00010999,2]
[335441641,1724233362383,156.36720659,0.00010999,2]
[335441642,1724233416492,166.68,0.00010959,2]
[335441643,1724233429001,155.0,0.00010999,2]
[335441644,1724233436423,531.39122984,0.00010999,2]
[335441645,1724233448015,166.33381801,0.00010999,2]
[335441646,1724233512586,155.0,0.00010999,2]
[335441647,1724233726350,236.36319912,0.00010999,2]
[335441648,1724233743948,439.27640021,0.00010999,2]
[335441649,1724233765965,-235.60557884,0.00011999,2]
[335441656,1724233832072,-589.80158569,0.00011999,2]
[335441657,1724233832082,-401.47,0.00012088,2]
[335441658,1724233832091,-156.36720659,0.00012613,2]
[335441659,1724233832101,-200.29325321,0.00012966,2]
[335441660,1724233832111,-155.0,0.00013001,2]
[335441661,1724233832120,-316.83560636,0.00013052,2]
[335441662,1724233832130,-150.0,0.00013096,2]
[335441663,1724233832141,-300.0,0.00013291,2]
[335441664,1724233832150,-4847.37,0.00013292,2]
[335441665,1724233832160,-1195.42,0.00013292,2]
[335441666,1724233832169,-202.39,0.00013292,2]
[335441667,1724233832179,-411.95,0.00013292,2]
[335441668,1724233832189,-383.79,0.00013332,2]
[335441669,1724233832199,-293.58046742,0.00013391,2]
[335441670,1724233832208,-305.05224028,0.00013391,2]
[335441671,1724233832218,-357.74940778,0.00013688,2]
[335441672,1724233832228,-380.35876131,0.00013698,2]
[335441673,1724233832237,-221.69903292,0.00013932,2]
[335441674,1724233832246,-200.01,0.00014017,2]
[335441675,1724233832255,-155.0,0.00014234,2]
[335441676,1724233832265,-522.80021426,0.00014245,2]
[335441677,1724233832274,-640.0,0.00014317,2]
[335441678,1724233832284,-401.47,0.00014351,2]
[335441679,1724233832293,-2292.58671897,0.00014782,2]
[335441680,1724233832302,-173.33,0.00015143,2]
[335441681,1724233832311,-1041.0424984,0.00015385,2]
[335441682,1724233832321,-1041.04249832,0.00015387,2]
[335441683,1724233832330,-1041.04249832,0.00015388,2]
[335441684,1724233832339,-306.55592693,0.0001539,2]
[335441685,1724233832348,-1041.04249832,0.0001539,2]
[335441686,1724233832358,-306.55592689,0.00015391,2]
[335441687,1724233832367,-1041.04249832,0.00015392,2]
[335441688,1724233832377,-306.55592689,0.00015393,2]
[335441689,1724233832389,-1041.04249832,0.00015393,2]
[335441691,1724233832398,-306.55592689,0.00015394,2]
[335441693,1724233832407,-1041.04249832,0.00015395,2]
[335441694,1724233832416,-306.55592689,0.00015396,2]
[335441695,1724233832425,-1041.04249832,0.00015397,2]
[335441696,1724233832434,-306.55592689,0.00015397,2]
[335441697,1724233832444,-1041.04249832,0.00015398,2]
[335441699,1724233832453,-306.55592689,0.00015399,2]
[335441700,1724233832462,-617.53607122,0.000154,2]
[335441703,1724233832471,-201.15137705,0.000154,2]
[335441706,1724233832481,-199.73100076,0.000154,2]
[335441708,1724233832490,-1041.04249832,0.000154,2]
[335441709,1724233832499,-2040.45739272,0.000154,2]
[335441710,1724233832508,-306.55592689,0.000154,2]
[335441711,1724233832517,-360.0,0.00015412,2]
[335441712,1724233832527,-150.0,0.00015435,2]
[335441713,1724233832536,-11758.95560395,0.00015465,2]
[335441714,1724233832545,-743.42,0.0001547,3]
[335441715,1724233832555,-17066.90156815,0.00015475,2]
[335441716,1724233832766,-6959.62754955,0.00015475,2]
[335441717,1724233832779,-1516.24615381,0.00015475,2]
[335441718,1724233832797,-2757.28875659,0.00015475,2]
[335441719,1724233832809,-21699.9359719,0.00015475,2]
[335441720,1724233832819,-1108.9181181,0.0001548,3]
[335441721,1724233832837,-46383.66053804,0.0001548,3]
[335441722,1724233832848,-2475.883476,0.0001548,3]
[335441727,1724233838120,-2879.43368562,0.00012079,2]
[335441729,1724233838134,-1478.58141895,0.00012079,2]
[335441731,1724233838146,-775.44461026,0.00012079,2]
[335441735,1724233838197,-1294.19060398,0.00012079,2]
[335441737,1724233838208,-519.980028,0.00012079,2]
[335441739,1724233838220,-1153.0,0.00012079,2]
[335441740,1724233838231,-6674.47107964,0.00012079,2]
[335441742,1724233838243,-2008.92646472,0.00012079,2]
[335441744,1724233838258,-729.17517403,0.00012079,2]
[335441746,1724233838270,-475.82133345,0.00012079,2]
[335441747,1724233838282,-424.88308538,0.00012079,2]
[335441748,1724233838294,-3377.38499015,0.00012079,2]
[335441749,1724233838306,-5726.34454775,0.00012079,2]
[335441750,1724233838318,-660.00000001,0.00012079,2]
[335441751,1724233838338,-24059.66385186,0.00012079,2]
[335441752,1724233838349,-1999.05404821,0.00012079,2]
[335441753,1724233838361,-479.23585153,0.00012079,2]
[335441754,1724233838373,-500.0,0.00012079,2]
[335441755,1724233838385,-2270.48898449,0.00012079,2]
[335441756,1724233838398,-1856.5631075,0.00012079,2]
[335441757,1724233838409,-300.32,0.00012079,2]
[335441758,1724233838420,-95174.21366777,0.00012079,2]
[335441759,1724233838429,-536.70565499,0.00014782,2]
[335441760,1724233838439,-25396.71901806,0.0001548,3]
[335441761,1724233838448,-78097.0,0.00015485,3]
[335441762,1724233838458,-9144.20654791,0.00015485,2]
[335441763,1724233838470,-5314.22404625,0.00015485,2]
[335441764,1724233838500,-586.27968751,0.00015485,2]
[335441765,1724233838512,-48712.65287047,0.00015485,2]
[335441767,1724233838523,-251.63,0.00015485,2]
[335441769,1724233838534,-307.95835348,0.00015485,2]
[335441771,1724233838546,-1656.96940033,0.00015485,2]
[335441773,1724233838557,-496.804842,0.00015485,2]
[335441775,1724233838568,-9374.27425205,0.00015485,2]
[335441777,1724233838578,-48469.28519021,0.00015489,2]
[335441779,1724233838589,-1391.18950319,0.00015489,2]
[335441963,1724233840374,-1279.32942339,0.00015489,2]
[335441970,1724233840438,-81074.14328991,0.00015489,2]
[335441971,1724233840448,-109610.7182802,0.00015489,2]
[335441973,1724233840457,-87007.4891536,0.00015489,2]
[335441975,1724233840466,-85642.251307,0.0001549,3]
[335441977,1724233840475,-150.09,0.0001549,2]
[335441979,1724233840484,-150.09,0.0001549,2]
[335441981,1724233840493,-150.09,0.0001549,2]
[335441983,1724233840502,-150.09,0.0001549,2]
[335441985,1724233840512,-150.09,0.0001549,2]
[335441987,1724233840521,-150.09,0.0001549,2]
[335441989,1724233840530,-150.09,0.0001549,2]
[335441991,1724233840540,-150.09,0.0001549,2]
[335441993,1724233840550,-150.09,0.0001549,2]
[335441995,1724233840559,-150.09,0.0001549,2]
[335441997,1724233840568,-150.09,0.0001549,2]
[335441999,1724233840578,-150.09,0.0001549,2]
[335442001,1724233840586,-150.09,0.0001549,2]
[335442003,1724233840596,-150.09,0.0001549,2]
[335442005,1724233840605,-150.09,0.0001549,2]
[335442007,1724233840614,-150.09,0.0001549,2]
[335442009,1724233840623,-150.09,0.0001549,2]
[335442010,1724233840633,-150.09,0.0001549,2]
[335442012,1724233840644,-150.09,0.0001549,2]
[335442014,1724233840653,-150.09,0.0001549,2]
[335442016,1724233840662,-150.09,0.0001549,2]
[335442018,1724233840672,-150.09,0.0001549,2]
[335442020,1724233840681,-150.09,0.0001549,2]
[335442022,1724233840690,-150.09,0.0001549,2]
[335442024,1724233840698,-150.09,0.0001549,2]
[335442026,1724233840711,-150.09,0.0001549,2]
[335442028,1724233840720,-150.09,0.0001549,2]
[335442030,1724233840729,-150.09,0.0001549,2]
[335442032,1724233840739,-150.09,0.0001549,2]
[335442034,1724233840749,-150.09,0.0001549,2]
[335442035,1724233840759,-150.09,0.0001549,2]
[335442036,1724233840769,-150.09,0.0001549,2]
[335442037,1724233840778,-150.09,0.0001549,2]
[335442038,1724233840789,-150.09,0.0001549,2]
[335442039,1724233840799,-150.09,0.0001549,2]
[335442040,1724233840809,-150.09,0.0001549,2]
[335442041,1724233840818,-150.09,0.0001549,2]
[335442042,1724233840828,-150.09,0.0001549,2]
[335442043,1724233840838,-150.09,0.0001549,2]
[335442044,1724233840847,-150.09,0.0001549,2]
[335442045,1724233840856,-150.09,0.0001549,2]
[335442046,1724233840865,-150.09,0.0001549,2]
[335442047,1724233840876,-150.09,0.0001549,2]
[335442048,1724233840885,-150.09,0.0001549,2]
[335442049,1724233840896,-150.09,0.0001549,2]
[335442051,1724233840905,-150.09,0.0001549,2]
[335442052,1724233840915,-150.09,0.0001549,2]
[335442054,1724233840924,-150.09,0.0001549,2]